bitfinex-derivatives/quotes_ETHF0:USTF0_20250831
["timestamp","ask_amount","ask_price","bid_price","bid_amount"]
[1756660609335,0.225,4480.9,4480.8,0.4872]
[1756660609633,0.85117616,4480.9,4480.8,0.4872]
[1756660610036,0.62617616,4480.9,4480.8,0.4872]
[1756660610236,0.85117616,4480.9,4480.8,0.4872]
[1756660612528,0.85117616,4480.9,4480.8,0.2977]
[1756660612738,0.85117616,4480.9,4480.1,0.2977]
[1756660612936,0.62617616,4480.8,4480.1,0.2977]
[1756660613135,0.225,4480.7,4480.1,0.2977]
[1756660613841,0.225,4480.7,4480.6,0.4872]
[1756660614640,0.85137534,4480.7,4480.6,0.4872]
[1756660619055,0.85137534,4480.7,4480.3,0.1895]
[1756660619246,0.62637534,4480.6,4480.5,0.2977]
[1756660619743,0.62637534,4480.6,4479.5,3.4328]
[1756660620047,3.83417534,4480.6,4479.6,0.2977]
[1756660620248,0.62637534,4480.5,4479.6,0.2977]
[1756660620448,0.225,4480.4,4480.3,0.4872]
[1756660620643,0.85137534,4480.4,4480.3,0.4872]
[1756660622248,0.62637534,4480.4,4480.3,0.4872]
[1756660622450,0.225,4480.4,4480.3,0.4872]
[1756660622648,0.85137534,4480.4,4480.3,0.4872]
[1756660624954,0.85137534,4480.4,4479.6,0.2977]
[1756660625255,0.62637534,4480.3,4479.6,0.2977]
[1756660625750,0.62637534,4480.3,4480.2,0.4872]
[1756660625953,0.225,4480.3,4480.2,0.4872]
[1756660627155,3.2078,4480.6,4480.5,0.1895]
[1756660627355,4.05949322,4480.6,4480.5,0.4872]
[1756660629757,3.83449322,4480.6,4480.5,0.4872]
[1756660629957,4.05949322,4480.6,4480.5,0.4872]
[1756660630762,0.85169322,4480.6,4480.5,0.4872]
[1756660631462,0.85169322,4480.6,4480.5,3.105452]
[1756660632158,0.85188599,4480.6,4480.5,3.105452]
[1756660635166,0.85188599,4480.6,4480.5,2.618252]
[1756660635360,4.05968599,4480.6,4480.5,2.618252]
[1756660635559,4.28287599,4480.6,4480.5,2.618252]
[1756660635758,9.48426643,4480.6,4480.5,2.400566]
[1756660636062,8.28287599,4480.6,4480.5,2.400566]
[1756660636764,8.05968599,4480.6,4480.5,2.400566]
[1756660641063,0.188,4479.9,4478.5,3.2078]
[1756660641371,2.0028958,4481.5,4478.2,32.15]
[1756660641372,0.2977,4479.4,4478.4,0.225]
[1756660641568,0.4857,4479.2,4479.1,0.1889]
[1756660641769,1.11258599,4479.2,4479.1,0.1889]
[1756660642472,0.62688599,4479.2,4478.2,0.225]
[1756660642674,0.62688599,4479.1,4477.9,3.2078]
[1756660642872,0.4857,4478.9,4478.8,0.1889]
[1756660643079,0.4857,4478.9,4478.8,0.4838]
[1756660644374,0.188,4478.9,4478.8,0.4838]
[1756660645170,3.3958,4479.0,4478.9,0.4838]
[1756660645370,3.9185,4479.0,4478.9,2.88428576]
[1756660645766,3.9185,4479.0,4478.9,2.40048576]
[1756660645969,4.5444883,4479.0,4478.9,2.40048576]
[1756660646972,8.5444883,4479.0,4478.9,2.40048576]
[1756660650673,8.3194883,4479.0,4478.9,2.40048576]
[1756660650874,4.5444883,4479.0,4478.9,2.88428576]
[1756660651979,4.3194883,4479.0,4478.9,2.88428576]
[1756660652181,4.5444883,4479.0,4478.9,2.88428576]
[1756660652375,3.9185,4479.0,4478.9,2.88428576]
[1756660653085,3.6935,4479.0,4478.9,2.88428576]
[1756660653282,3.9185,4479.0,4478.9,2.88428576]
[1756660653489,3.9185,4479.0,4478.9,2.58938576]
[1756660653985,3.9185,4479.0,4478.9,2.88428576]
[1756660656188,3.6935,4479.0,4478.9,2.88428576]
[1756660656383,3.9185,4479.0,4478.9,2.88428576]
[1756660657684,3.9185,4479.0,4478.9,2.58938576]
[1756660658082,3.9185,4479.0,4478.9,2.40048576]
[1756660658083,4.54665282,4479.0,4478.9,2.40048576]
[1756660658282,0.2754,4478.9,4477.5,0.2862]
[1756660658484,1.20244859,4479.4,4478.0,0.1947]
[1756660658485,0.4661,4478.1,4478.0,0.1947]
[1756660658785,0.6911,4478.1,4478.0,0.4809]
[1756660660584,3.8989,4478.1,4478.0,0.4809]
[1756660660980,0.2754,4478.0,4477.1,0.2862]
[1756660661181,0.2754,4477.8,4477.1,0.2862]
[1756660661385,0.225,4477.7,4477.1,0.2862]
[1756660661691,3.6739,4477.6,4477.5,0.4809]
[1756660662588,0.2754,4477.5,4477.0,0.2862]
[1756660662796,3.6739,4477.1,4477.0,0.4809]
[1756660662995,3.4328,4477.1,4476.0,0.2862]
[1756660663288,0.4661,4477.0,4476.9,0.1947]
[1756660664496,0.4661,4477.0,4476.9,0.4809]
[1756660665086,1.08976428,4477.0,4476.6,0.2862]
[1756660665288,0.4661,4476.7,4476.6,0.2862]
[1756660665489,0.6911,4476.7,4476.6,0.4809]
[1756660665887,0.6911,4476.7,4475.2,32.163]
[1756660665888,1.31485041,4476.7,4475.4,3.4328]
[1756660666084,3.3985,4476.4,4476.3,0.1947]
[1756660666288,3.6005,4476.4,4476.3,0.4809]
[1756660666695,3.8759,4476.4,4476.3,0.4809]
[1756660670700,0.1115,4476.6,4476.3,0.1947]
[1756660671004,0.1115,4476.6,4476.5,0.4809]
[1756660676706,3.2078,4477.0,4476.9,0.4809]
[1756660677110,3.4832,4477.0,4476.9,0.4809]
[1756660677299,3.6739,4477.0,4476.9,0.4809]
[1756660677502,3.2078,4477.0,4476.9,0.4809]
[1756660678104,0.225,4477.3,4476.9,0.1947]
[1756660678300,0.225,4477.3,4477.2,0.1947]
[1756660678507,0.225,4477.3,4477.2,0.4809]
[1756660678805,0.4661,4477.8,4477.7,0.1947]
[1756660679005,1.31425381,4477.8,4477.7,0.4809]
[1756660679909,0.2754,4477.7,4476.6,0.2862]
[1756660680110,1.08925381,4477.6,4477.5,0.4809]
[1756660680409,1.31425381,4477.6,4477.5,0.4809]
[1756660680604,1.03885381,4477.6,4477.5,0.4809]
[1756660680804,0.2754,4478.3,4478.0,0.1947]
[1756660681004,1.31420551,4478.2,4478.1,0.4809]
[1756660681703,3.2078,4478.4,4478.1,0.4809]
[1756660681908,3.2078,4478.4,4478.2,0.2862]
[1756660682110,3.2078,4478.4,4478.3,0.1947]
[1756660682405,0.2754,4478.7,4478.4,0.4809]
[1756660682606,0.225,4478.6,4478.4,0.1947]
[1756660682905,0.225,4478.6,4478.5,0.4809]
[1756660683713,3.2078,4479.1,4478.5,0.1947]
[1756660683912,0.225,4478.8,4478.7,0.4809]
[1756660684115,0.6911,4478.8,4478.7,0.4809]
[1756660685512,0.87503956,4478.8,4478.7,0.4809]
[1756660687808,0.87503956,4478.8,4478.7,0.1947]
[1756660688010,0.65003956,4478.8,4478.7,0.4944]
[1756660688210,0.87503956,4478.8,4478.7,0.4944]
[1756660689613,0.65003956,4478.8,4478.7,0.4944]
[1756660689913,0.87503956,4478.8,4478.7,0.4944]
[1756660690214,0.87493335,4478.8,4478.7,0.4944]
[1756660694117,0.59953335,4478.8,4478.1,0.2997]
[1756660694317,0.1934,4478.2,4478.1,0.4869]
[1756660694516,0.65683335,4478.2,4478.1,0.4869]
[1756660695013,0.37723335,4478.2,4478.1,0.4869]
[1756660696417,0.65683335,4478.2,4478.1,0.4869]
[1756660696622,0.2796,4478.1,4477.5,0.2997]
[1756660696811,0.473,4477.6,4477.5,0.4869]
[1756660697017,0.65683335,4477.6,4477.5,0.4869]
[1756660698322,0.2796,4477.5,4477.0,0.2997]
[1756660698517,0.473,4477.1,4477.0,0.4869]
[1756660698721,0.65683335,4477.1,4477.0,0.4869]
[1756660700725,0.473,4477.1,4477.0,0.4869]
[1756660701028,0.65710846,4477.1,4477.0,0.4869]
[1756660701423,0.65713935,4477.1,4477.0,0.4869]
[1756660710731,0.18413935,4477.1,4477.0,0.4869]
[1756660711430,0.2796,4477.8,4477.0,0.4869]
[1756660711633,0.18428872,4477.7,4477.0,0.1872]
[1756660711831,0.65728872,4477.6,4477.5,0.4869]
[1756660712330,0.65728496,4477.6,4477.5,0.4869]
[1756660713229,0.18428496,4477.6,4477.5,0.4869]
[1756660714627,0.18428496,4477.6,4477.5,4.71024]
[1756660714828,0.18428496,4477.6,4477.5,4.4869]
[1756660718633,0.18428496,4477.6,4477.5,0.4869]
[1756660719331,0.18428496,4477.6,4477.5,4.4869]
[1756660722236,0.18413488,4477.6,4477.5,4.4869]
[1756660722827,0.18413808,4477.6,4477.5,4.4869]
[1756660731941,0.2966,4478.2,4477.5,4.1872]
[1756660732141,0.18410077,4478.1,4478.0,0.4681]
[1756660732342,0.18410077,4478.1,4478.0,3.9009]
[1756660733040,0.1840899,4478.1,4478.0,3.9009]
[1756660733637,0.1840899,4478.1,4478.0,4.08318412]
[1756660734639,0.2966,4479.1,4478.0,3.79858412]
[1756660734839,0.38087241,4479.0,4478.9,0.1835]
[1756660735041,0.38087241,4479.0,4478.9,0.4681]
[1756660735632,0.67747241,4479.0,4478.9,0.4681]
[1756660736237,0.67747241,4479.0,4478.8,0.225]
[1756660736440,0.67747241,4478.9,4478.8,0.225]
[1756660737540,0.67747241,4478.9,4478.8,0.6931]
[1756660738142,0.67747241,4478.9,4478.8,0.4681]
[1756660738343,0.67747241,4478.9,4478.8,0.6931]
[1756660742051,0.18407241,4478.9,4478.8,0.6931]
[1756660742246,0.18407241,4479.5,4478.8,4.4085]
[1756660742446,3.2078,4480.6,4479.5,0.2846]
[1756660742649,0.2966,4480.4,4479.6,0.225]
[1756660742849,0.1968,4479.8,4479.7,0.4681]
[1756660743047,0.67762562,4479.8,4479.7,0.4681]
[1756660750557,0.67762562,4479.8,4479.7,0.6931]
[1756660751260,0.67762562,4479.8,4479.7,0.4681]
[1756660751460,0.67762562,4479.8,4479.7,0.6931]
[1756660753064,0.4934,4479.8,4479.7,0.6931]
[1756660753264,0.67623501,4479.8,4479.7,0.6931]
[1756660757766,0.18283501,4479.8,4479.7,0.6931]
[1756660757966,0.2999,4480.5,4479.7,4.6931]
[1756660758269,0.2999,4480.5,4480.3,0.4715]
[1756660758470,0.2999,4481.1,4480.5,0.2751]
[1756660758669,0.4976,4480.6,4480.5,0.4715]
[1756660760263,0.2999,4481.1,4480.6,0.2751]
[1756660760469,0.4976,4481.1,4481.0,0.1964]
[1756660760668,0.4976,4481.1,4481.0,0.4715]
[1756660765671,0.4976,4481.1,4481.0,0.6965]
[1756660774580,3.2078,4481.9,4481.0,0.6965]
[1756660774780,0.1977,4481.1,4481.0,0.4214]
[1756660774980,0.4976,4481.1,4481.0,0.4214]
[1756660775383,0.4976,4481.1,4481.0,0.6965]
[1756660778283,0.4834,4480.5,4480.4,3.2078]
[1756660778589,0.4834,4480.0,4479.9,0.2751]
[1756660778792,0.4834,4480.0,4479.9,0.5001]
[1756660781386,0.4834,4480.0,4479.9,0.225]
[1756660781988,0.4834,4480.0,4479.8,0.225]
[1756660782893,0.2,4480.0,4479.4,3.2078]
[1756660783087,3.2078,4480.5,4479.7,0.225]
[1756660783088,0.2,4479.8,4479.7,0.225]
[1756660783288,0.4834,4479.8,4479.7,0.225]
[1756660784686,0.4834,4479.8,4479.4,3.2078]
[1756660784993,0.4834,4479.8,4478.1,32.158]
[1756660784994,0.4834,4479.1,4478.9,3.4328]
[1756660785186,0.4834,4479.0,4478.9,3.9041]
[1756660785383,0.1115,4479.2,4478.9,3.9041]
[1756660785583,0.1115,4479.2,4479.1,0.1962]
[1756660785785,0.1115,4479.2,4479.1,0.4713]
[1756660786092,0.1115,4479.2,4479.1,4.4713]
[1756660786990,0.2834,4480.3,4479.2,0.2751]
[1756660787196,0.4834,4480.3,4480.2,0.4713]
[1756660789193,0.2834,4480.6,4480.3,0.2751]
[1756660789499,0.4834,4480.6,4480.5,0.4713]
[1756660790092,0.225,4481.1,4480.1,3.2078]
[1756660790093,0.2834,4480.2,4480.1,3.2078]
[1756660790300,0.4834,4480.2,4480.0,0.225]
[1756660790499,3.2078,4480.7,4479.6,3.2078]
[1756660790500,0.2,4479.7,4479.6,3.4829]
[1756660790799,0.4834,4479.7,4479.6,3.7079]
[1756660790998,0.4834,4479.7,4479.6,0.5001]
[1756660791199,0.4834,4479.7,4479.6,0.2751]
[1756660791399,0.4834,4479.2,4479.1,3.404]
[1756660791599,0.4834,4479.2,4479.1,3.629]
[1756660791900,0.4834,4479.2,4479.1,3.9041]
[1756660798306,3.2078,4480.4,4479.1,3.9041]
[1756660798502,0.2834,4480.3,4479.2,0.2751]
[1756660798702,0.50663,4480.3,4479.3,0.225]
[1756660798903,0.4834,4479.5,4479.4,0.4713]
[1756660799503,3.2078,4480.4,4479.5,0.2751]
[1756660799809,0.4834,4479.7,4479.6,0.6963]
[1756660803704,0.4834,4479.7,4479.6,0.4713]
[1756660803909,0.4834,4479.7,4478.5,3.6791]
[1756660803910,0.2,4478.6,4478.5,3.6791]
[1756660804115,0.4834,4478.6,4478.5,3.6791]
[1756660804612,0.4834,4478.6,4478.5,3.404]
[1756660805515,0.4834,4478.6,4478.5,3.6791]
[1756660805917,0.4834,4478.6,4478.2,0.2751]
[1756660806110,0.2,4478.6,4478.2,0.5001]
[1756660806311,0.2,4478.3,4478.2,0.4212]
[1756660806515,0.4834,4478.3,4478.2,0.4212]
[1756660806816,0.4834,4478.3,4478.2,0.6963]
[1756660808115,3.2078,4479.2,4478.3,0.3038]
[1756660808305,0.3,4479.1,4478.3,0.3038]
[1756660808506,0.52328,4479.1,4478.3,0.3038]
[1756660808707,0.3,4479.1,4478.3,0.3038]
[1756660809109,0.501,4478.4,4478.3,0.4963]
[1756660816419,0.501,4478.4,4478.3,0.7213]
[1756660819326,0.101,4479.5,4478.4,0.3038]
[1756660819528,0.3,4479.3,4478.5,0.225]
[1756660819728,0.3,4479.3,4478.6,0.3038]
[1756660819923,0.3,4479.3,4478.7,0.225]
[1756660820129,0.3,4479.3,4478.8,0.3038]
[1756660820328,0.201,4478.9,4478.8,0.4963]
[1756660820531,0.501,4478.9,4478.8,0.4963]
[1756660823624,0.3,4479.6,4478.8,0.1925]
[1756660823830,0.501,4479.6,4479.5,0.4963]
[1756660824727,0.501,4480.4,4480.3,0.1925]
[1756660824928,0.501,4480.4,4480.3,0.4963]
[1756660825136,0.3,4480.9,4480.4,0.3038]
[1756660825328,0.501,4480.9,4480.8,0.4963]
[1756660826734,0.3,4481.2,4480.8,0.4963]
[1756660826935,0.201,4481.0,4480.9,0.4963]
[1756660827136,0.501,4481.0,4480.9,0.4963]
[1756660831129,0.501,4481.0,4480.9,0.3038]
[1756660831329,0.501,4481.0,4480.9,0.4963]
[1756660833931,0.501,4481.0,4480.9,0.1925]
[1756660834138,0.501,4481.0,4480.8,0.225]
[1756660834835,0.501,4480.9,4480.8,0.7213]
[1756660836535,0.501,4480.9,4480.5,3.2078]
[1756660836735,0.501,4480.6,4480.5,3.2078]
[1756660836935,0.501,4480.6,4480.1,0.225]
[1756660837532,0.501,4480.6,4480.1,0.5288]
[1756660837738,0.201,4480.2,4480.1,0.7213]
[1756660838043,0.4987,4480.2,4480.1,0.7213]
[1756660838343,0.201,4480.2,4480.1,0.7213]
[1756660838540,0.4987,4480.2,4480.1,0.7213]
[1756660838741,0.2977,4480.6,4480.1,0.4175]
[1756660839039,0.2977,4481.5,4480.2,0.2993]
[1756660839245,0.52087,4481.5,4480.2,0.2993]
[1756660839447,0.22317,4481.4,4480.2,0.2993]
[1756660839650,0.2977,4481.3,4480.2,0.2993]
[1756660839839,0.52087,4481.3,4480.2,0.2993]
[1756660840140,0.2977,4481.1,4480.2,0.2993]
[1756660840337,0.4965,4480.3,4480.2,0.4986]
[1756660841840,0.4965,4480.3,4480.0,3.2078]
[1756660842139,0.4965,4479.5,4479.4,0.4986]
[1756660842345,0.4965,4479.5,4479.4,0.7236]
[1756660843048,0.2977,4479.9,4479.4,0.4243]
[1756660843243,3.2078,4480.6,4479.5,0.2993]
[1756660843244,0.2977,4480.5,4479.5,0.2993]
[1756660843443,0.52091,4480.5,4479.5,0.2993]
[1756660844147,0.1988,4479.6,4479.5,0.4986]
[1756660844443,0.4965,4479.6,4479.3,3.2078]
[1756660844653,0.4965,4479.4,4479.3,3.2078]
[1756660846250,0.4965,4479.4,4479.1,0.225]
[1756660846448,0.2977,4479.3,4478.7,3.2078]
[1756660846647,0.4965,4478.8,4478.7,3.7064]
[1756660846951,0.4965,4478.8,4478.7,3.9314]
[1756660847244,0.4965,4478.8,4478.7,3.7064]
[1756660847440,0.4965,4478.8,4478.7,3.6321]
[1756660848142,0.4965,4478.8,4478.7,3.7064]
[1756660848341,0.4965,4478.8,4478.7,0.225]
[1756660848553,0.4965,4478.3,4478.2,3.7064]
[1756660848751,0.4965,4478.3,4478.2,3.9314]
[1756660849647,0.4965,4478.3,4478.2,0.7236]
[1756660850848,0.4965,4478.3,4478.2,0.225]
[1756660851044,0.4965,4478.3,4477.7,3.2078]
[1756660851250,0.4965,4478.2,4478.1,0.225]
[1756660851447,0.4965,4478.2,4478.1,0.7236]
[1756660852354,0.4965,4478.2,4478.1,0.225]
[1756660852548,0.4965,4478.2,4477.8,0.2993]
[1756660852846,0.4965,4478.2,4477.9,0.225]
[1756660853246,0.4965,4478.2,4478.1,0.4986]
[1756660855551,0.2977,4478.1,4477.7,3.2078]
[1756660855753,0.4965,4477.8,4477.7,0.225]
[1756660858157,0.4965,4477.8,4477.7,0.7236]
[1756660858856,0.2977,4478.1,4477.7,0.4243]
[1756660859053,3.4066,4478.2,4478.1,0.1993]
[1756660859254,3.4066,4478.2,4478.1,0.4986]
[1756660859556,3.7043,4478.2,4478.1,0.4986]
[1756660859952,0.4965,4478.2,4478.1,0.4986]
[1756660860157,0.4965,4478.2,4478.1,0.1993]
[1756660860352,0.4965,4478.2,4477.8,0.2993]
[1756660860757,0.4965,4478.2,4477.7,0.225]
[1756660860758,0.4965,4478.2,4478.1,0.4986]
[1756660860958,0.4965,4478.2,4477.8,0.2993]
[1756660862655,0.4965,4478.2,4477.7,0.225]
[1756660863257,0.1988,4477.2,4477.1,3.7064]
[1756660863458,0.4965,4477.2,4477.1,3.9314]
[1756660864759,0.4965,4477.2,4477.1,3.7064]
[1756660864965,0.4965,4477.2,4477.1,0.4986]
[1756660865462,0.4965,4477.2,4477.1,0.1993]
[1756660866162,0.4965,4477.2,4476.8,0.2993]
[1756660866368,0.1988,4476.9,4476.8,0.7236]
[1756660866570,0.1988,4476.9,4476.8,0.4986]
[1756660866571,0.4965,4476.9,4476.8,0.4986]
[1756660868364,3.2078,4477.3,4476.8,0.4986]
[1756660868574,0.2766,4477.2,4477.1,0.2015]
[1756660868868,0.4737,4477.2,4477.1,0.4787]
[1756660869069,32.162,4478.9,4477.1,0.4787]
[1756660869070,3.4049,4478.1,4478.0,0.2015]
[1756660869374,3.4049,4478.1,4478.0,0.4787]
[1756660869775,3.6815,4478.1,4478.0,0.4787]
[1756660870277,3.2078,4478.1,4478.0,0.4787]
[1756660871170,0.1971,4478.4,4478.3,0.2015]
[1756660871374,0.4737,4478.4,4478.3,0.2015]
[1756660871972,0.4737,4478.4,4478.3,0.4787]
[1756660878178,0.2766,4478.7,4478.3,0.4787]
[1756660878377,0.1971,4478.5,4478.4,0.4787]
[1756660878576,0.4737,4478.5,4478.4,0.4787]
[1756660885179,0.4737,4479.0,4478.9,0.4787]
[1756660892087,0.1971,4479.0,4478.9,0.4787]
[1756660892286,0.2766,4479.4,4479.0,0.2772]
[1756660892485,0.4737,4479.4,4479.3,0.4787]
[1756660892983,3.2078,4479.5,4479.4,0.4787]
[1756660893187,0.4737,4479.5,4479.4,0.4787]
[1756660898792,0.4964,4479.5,4479.4,0.4787]
[1756660904398,0.497,4480.2,4480.1,0.4798]
[1756660904695,0.1977,4480.2,4480.1,0.4798]
[1756660904995,0.497,4480.9,4480.8,0.4798]
[1756660912094,0.497,4480.9,4480.8,0.199]
[1756660912298,3.2078,4481.0,4480.0,3.2078]
[1756660912299,0.2993,4480.8,4480.1,0.2808]
[1756660913496,0.497,4480.8,4480.7,0.199]
[1756660913800,3.2078,4481.5,4479.8,0.225]
[1756660913801,0.497,4481.4,4481.3,0.4798]
[1756660914000,0.722,4481.4,4481.3,0.4798]
[1756660914393,0.722,4481.4,4481.3,0.199]
[1756660915499,0.722,4481.4,4481.0,0.2808]
[1756660915797,0.2993,4481.3,4480.6,0.2808]
[1756660916002,0.5243,4481.3,4480.6,0.2808]
[1756660917203,0.722,4481.3,4481.2,0.199]
[1756660917399,0.722,4481.3,4481.2,0.4798]
[1756660917702,0.2993,4481.2,4480.6,0.2808]
[1756660917899,0.497,4481.2,4481.1,0.4798]
[1756660919003,0.1977,4481.2,4480.6,0.2808]
[1756660919199,0.2993,4480.6,4480.5,3.2078]
[1756660919399,0.2993,4480.6,4478.7,0.2808]
[1756660919400,0.1977,4478.8,4478.7,0.2808]
[1756660919601,0.1977,4478.8,4476.8,32.147]
[1756660919602,0.1977,4478.0,4477.4,3.2078]
[1756660919800,0.497,4477.6,4477.5,0.4798]
[1756660920901,0.497,4478.1,4478.0,0.199]
[1756660922101,0.497,4478.1,4477.8,0.2808]
[1756660922300,0.497,4478.0,4477.9,0.199]
[1756660922505,0.497,4478.0,4477.7,0.2808]
[1756660923403,0.1977,4477.0,4476.9,0.4798]
[1756660923605,0.497,4477.0,4476.9,0.199]
[1756660923807,0.497,4477.9,4477.8,0.199]
[1756660924012,0.497,4477.9,4477.8,0.4798]
[1756660924205,0.497,4477.9,4477.8,0.199]
[1756660924607,0.497,4477.9,4477.5,0.2808]
[1756660924804,0.1977,4477.9,4477.0,0.2808]
[1756660925004,0.2993,4477.8,4477.1,0.2808]
[1756660925806,0.497,4477.2,4477.1,0.4798]
[1756660927410,0.1977,4477.2,4477.1,0.4798]
[1756660928708,0.4727,4477.2,4477.1,0.4798]
[1756660929406,0.4727,4477.2,4476.9,3.2078]
[1756660929714,0.4727,4477.2,4475.2,0.40217]
[1756660929715,0.4735,4476.9,4476.8,0.4832]
[1756660929911,0.4735,4476.9,4476.8,0.1847]
[1756660930614,0.4735,4476.9,4476.5,0.2985]
[1756660931010,0.275,4476.8,4476.2,3.7313]
[1756660931211,0.1985,4476.3,4476.2,3.916]
[1756660931718,3.4328,4477.5,4476.2,3.6175]
[1756660931915,0.49837,4477.4,4476.3,0.2985]
[1756660932413,0.275,4477.4,4476.3,0.2985]
[1756660933014,0.275,4477.2,4476.3,0.2985]
[1756660934013,0.5,4477.2,4476.3,0.2985]
[1756660934417,0.4735,4476.4,4476.3,0.4832]
[1756660934612,0.4735,4476.4,4476.3,0.1847]
[1756660935310,0.4735,4476.4,4476.2,0.225]
[1756660937208,0.275,4475.7,4475.6,3.2078]
[1756660937411,0.4735,4475.7,4475.6,3.2078]
[1756660937916,0.4735,4475.7,4475.6,3.691]
[1756660941713,3.5179,4476.5,4476.4,0.4832]
[1756660941916,3.7929,4476.5,4476.4,0.4832]
[1756660943023,0.1116,4476.5,4476.4,0.4832]
[1756660944016,0.3101,4476.5,4476.4,0.4832]
[1756660944320,0.5851,4476.5,4476.4,0.4832]
[1756660946722,0.1116,4476.5,4476.4,0.4832]
[1756660947125,0.5851,4476.5,4476.4,0.4832]
[1756660948418,0.3101,4476.5,4476.4,0.4832]
[1756660949123,0.1116,4476.5,4476.4,0.4832]
[1756660949325,0.73580676,4476.5,4476.4,0.4832]
[1756660950926,1.20930676,4476.5,4476.4,0.4832]
[1756660951923,0.4735,4476.3,4476.2,3.2078]
[1756660952118,1.09770676,4476.3,4476.2,3.2078]
[1756660952524,1.09770676,4476.3,4476.2,3.3925]
[1756660953221,1.09770676,4476.3,4476.2,3.691]
[1756660953821,0.62420676,4476.3,4476.2,3.691]
[1756660954021,0.62420676,4476.3,4476.2,3.3925]
[1756660954227,0.5851,4476.5,4476.4,0.1847]
[1756660954429,1.20980479,4476.5,4476.4,0.4832]
[1756660954724,0.93480479,4476.5,4476.4,0.4832]
[1756660954930,1.20980479,4476.5,4476.4,0.4832]
[1756660956420,0.73630479,4476.5,4476.4,0.4832]
[1756660960534,1.12710479,4476.5,4476.4,0.4832]
[1756660962741,1.12710479,4476.5,4476.3,0.225]
[1756660962940,1.12710479,4476.4,4476.3,0.225]
[1756660965242,0.5024,4476.3,4476.2,3.2078]
[1756660965442,1.12710479,4476.3,4476.2,3.3965]
[1756660965643,1.12710479,4476.3,4476.2,3.6874]
[1756660967245,1.12710479,4476.3,4476.2,0.4796]
[1756660971649,1.12710479,4476.3,4476.0,0.225]
[1756660971844,0.2016,4476.1,4476.0,0.225]
[1756660972147,0.5024,4476.1,4476.0,0.225]
[1756660973652,0.5024,4476.1,4476.0,0.7046]
[1756660980656,0.1116,4476.7,4476.6,0.1887]
[1756660980851,0.1116,4476.7,4476.6,3.6874]
[1756660982949,0.3008,4477.0,4476.6,3.3965]
[1756660983256,0.5024,4477.0,4476.9,0.4796]
[1756660984247,0.5024,4477.0,4476.9,0.1887]
[1756660984455,0.5024,4476.7,4476.4,0.225]
[1756660985252,0.2016,4476.5,4476.4,0.7046]
[1756660985451,0.5024,4476.5,4476.4,0.7046]
[1756660987158,0.5024,4477.1,4477.0,0.1887]
[1756660987353,0.5024,4477.1,4477.0,0.4796]
[1756660987552,1.12937632,4477.1,4477.0,0.4796]
[1756660988257,0.62697632,4477.1,4477.0,0.4796]
[1756660988458,0.3889,4477.2,4477.1,0.2865]
[1756660988658,0.5811,4477.2,4477.1,0.4726]
[1756660994364,0.5811,4477.2,4477.1,0.1861]
[1756660994756,0.3038,4477.2,4476.9,3.2078]
[1756660994962,0.2773,4476.9,4476.5,0.2865]
[1756660995160,0.1922,4476.4,4476.3,0.4726]
[1756660995361,0.4695,4476.4,4476.3,0.4726]
[1756660995668,0.4695,4476.4,4476.3,0.1861]
[1756660995964,0.4695,4476.4,4476.3,0.4726]
[1756661001467,0.1922,4476.4,4476.3,0.4726]
[1756661002167,0.4695,4476.4,4476.3,0.4726]
[1756661003168,0.1116,4476.6,4476.5,0.1861]
[1756661003565,0.1116,4476.6,4476.5,0.4726]
[1756661003765,0.3889,4476.6,4476.5,0.4726]
[1756661004063,0.5811,4476.6,4476.5,0.4726]
[1756661007563,0.1922,4476.3,4475.6,0.2865]
[1756661007772,0.4695,4475.9,4475.8,3.2078]
[1756661008469,0.4695,4475.3,4475.2,3.6804]
[1756661010575,0.1922,4475.3,4475.2,3.6804]
[1756661010776,3.5444,4476.6,4475.2,3.3939]
[1756661011074,0.1922,4475.5,4475.4,0.4726]
[1756661011274,0.1116,4476.6,4476.5,0.4726]
[1756661011466,0.1116,4476.6,4476.5,3.9054]
[1756661011773,0.1116,4476.6,4476.5,4.12879]
[1756661011973,0.1116,4476.6,4476.5,3.9054]
[1756661018478,3.2078,4478.8,4477.3,0.1925]
[1756661018676,0.4761,4477.7,4477.6,3.6858]
[1756661018978,0.4761,4477.7,4477.6,3.8298]
[1756661019874,0.4761,4477.7,4477.6,3.3518]
[1756661022682,0.4761,4477.7,4477.6,3.5443]
[1756661022977,4.189,4477.7,4477.1,3.2078]
[1756661023177,0.4761,4477.2,4477.1,3.2078]
[1756661025185,0.4761,4477.2,4477.1,3.9128]
[1756661025384,0.189,4477.2,4477.1,3.9128]
[1756661025883,0.1116,4477.9,4477.2,0.2855]
[1756661025884,0.2871,4477.8,4477.2,0.2855]
[1756661026690,0.189,4477.3,4477.2,0.478]
[1756661026984,0.4761,4477.3,4477.2,0.478]
[1756661027379,0.2871,4477.2,4477.1,3.4348]
[1756661027686,0.4761,4477.2,4476.7,0.227]
[1756661028483,0.1116,4477.9,4476.7,0.5125]
[1756661028786,0.4761,4476.8,4476.7,0.705]
[1756661029085,0.2871,4477.8,4476.8,0.2855]
[1756661029281,0.189,4476.9,4476.8,0.2855]
[1756661029584,0.4761,4476.9,4476.8,0.5125]
[1756661029987,0.4761,4476.9,4476.8,0.705]
[1756661030884,0.189,4476.9,4476.8,0.705]